[Event "Early-Titled-Tuesday-Blitz-May-07-2024"]
[Site "Chess.com"]
[Date "2024.05.07"]
[Round "4"]
[White "FuenfgegenWilly"]
[Black "Chess4always"]
[Result "1-0"]
[WhiteElo "2457"]
[BlackElo "2033"]
[TimeControl "180+1"]
[EndTime "8:44:32 PDT"]
[Termination "FuenfgegenWilly won by resignation"]

1. e4 {[%clk 0:03:00.9]} 1... c6 {[%clk 0:02:59]} 2. Nc3 {[%clk 0:02:56.8]} 2...
d5 {[%clk 0:02:59.9]} 3. Qe2 {[%clk 0:02:57.5]} 3... dxe4 {[%clk 0:02:59.4]} 4.
Nxe4 {[%clk 0:02:58.4]} 4... Nf6 {[%clk 0:02:59.4]} 5. d3 {[%clk 0:02:58.8]}
5... Bf5 {[%clk 0:02:58.9]} 6. h3 {[%clk 0:02:52.9]} 6... h6 {[%clk 0:02:58.2]}
7. g4 {[%clk 0:02:52.5]} 7... Bxe4 {[%clk 0:02:57.5]} 8. dxe4 {[%clk 0:02:52.5]}
8... e5 {[%clk 0:02:57.7]} 9. Nf3 {[%clk 0:02:51.9]} 9... Nbd7 {[%clk
0:02:57.1]} 10. g5 {[%clk 0:02:43.8]} 10... hxg5 {[%clk 0:02:54.7]} 11. Bxg5
{[%clk 0:02:44.4]} 11... Be7 {[%clk 0:02:52.4]} 12. O-O-O {[%clk 0:02:43.6]}
12... Qa5 {[%clk 0:02:50.6]} 13. Kb1 {[%clk 0:02:43.2]} 13... O-O-O {[%clk
0:02:45.7]} 14. h4 {[%clk 0:02:42.9]} 14... Rhe8 {[%clk 0:02:43.1]} 15. Bh3
{[%clk 0:02:31.6]} 15... Kc7 {[%clk 0:02:21.3]} 16. Nd2 {[%clk 0:02:21.4]} 16...
Nb6 {[%clk 0:02:05.8]} 17. Nb3 {[%clk 0:02:20.5]} 17... Qb4 {[%clk 0:01:54.8]}
18. f3 {[%clk 0:02:20.5]} 18... Nh5 {[%clk 0:01:51.7]} 19. Bxe7 {[%clk
0:02:00.6]} 19... Rxe7 {[%clk 0:01:52.6]} 20. Rxd8 {[%clk 0:01:58.8]} 20... Kxd8
{[%clk 0:01:53.5]} 21. Rd1+ {[%clk 0:01:52.6]} 21... Kc7 {[%clk 0:01:53.9]} 22.
Qd3 {[%clk 0:01:51.8]} 22... Re8 {[%clk 0:01:37.3]} 23. c3 {[%clk 0:01:52]}
23... Qe7 {[%clk 0:01:36.1]} 24. Bg4 {[%clk 0:01:50]} 24... Nf4 {[%clk
0:01:35.8]} 25. Qd2 {[%clk 0:01:48.7]} 25... Rd8 {[%clk 0:01:29]} 26. Qxd8+
{[%clk 0:01:47.5]} 26... Qxd8 {[%clk 0:01:29.9]} 27. Rxd8 {[%clk 0:01:47.5]}
27... Kxd8 {[%clk 0:01:30.8]} 28. Kc2 {[%clk 0:01:46.1]} 28... Kc7 {[%clk
0:01:28.6]} 29. Nc5 {[%clk 0:01:44.5]} 29... Nc8 {[%clk 0:01:23.9]} 30. Nd7
{[%clk 0:01:23.9]} 30... f6 {[%clk 0:01:07.4]} 31. Nf8 {[%clk 0:01:23.8]} 31...
Ne7 {[%clk 0:01:03.5]} 32. h5 {[%clk 0:01:21.6]} 32... Kd6 {[%clk 0:01:03]} 33.
b4 {[%clk 0:01:21]} 33... b6 {[%clk 0:00:58.7]} 34. Nd7 {[%clk 0:01:13.5]} 34...
Ng2 {[%clk 0:00:47.1]} 35. Kd3 {[%clk 0:01:09.3]} 35... Nf4+ {[%clk 0:00:47.1]}
36. Ke3 {[%clk 0:01:07.9]} 36... Ng2+ {[%clk 0:00:46.7]} 37. Kf2 {[%clk
0:01:07.9]} 37... Nf4 {[%clk 0:00:47.6]} 38. h6 {[%clk 0:01:03.2]} 38... gxh6
{[%clk 0:00:41.5]} 39. Nxf6 {[%clk 0:01:03.1]} 39... Neg6 {[%clk 0:00:36.8]} 40.
Bf5 {[%clk 0:00:58.1]} 40... Nd3+ {[%clk 0:00:36]} 41. Ke3 {[%clk 0:00:57.5]}
41... Ngf4 {[%clk 0:00:36.9]} 42. Bg4 {[%clk 0:00:46.2]} 42... Nb2 {[%clk
0:00:33.6]} 43. Ne8+ {[%clk 0:00:39.1]} 43... Ke7 {[%clk 0:00:32.2]} 44. Nc7
{[%clk 0:00:38.6]} 44... Nc4+ {[%clk 0:00:29.8]} 45. Kf2 {[%clk 0:00:36.3]}
45... h5 {[%clk 0:00:30.5]} 46. Bf5 {[%clk 0:00:35.2]} 46... Na3 {[%clk
0:00:28]} 47. Na6 {[%clk 0:00:31]} 47... Nb1 {[%clk 0:00:27]} 48. c4 {[%clk
0:00:31.3]} 48... Nc3 {[%clk 0:00:26.5]} 49. a3 {[%clk 0:00:28.7]} 49... Nd3+
{[%clk 0:00:25.9]} 50. Ke3 {[%clk 0:00:28.1]} 50... Nf4 {[%clk 0:00:26.1]} 51.
c5 {[%clk 0:00:24.4]} 51... Nb1 {[%clk 0:00:23.3]} 52. Nb8 {[%clk 0:00:22.9]}
52... Nxa3 {[%clk 0:00:20]} 53. Nxc6+ {[%clk 0:00:23]} 53... Ke8 {[%clk
0:00:19.5]} 54. Nxa7 {[%clk 0:00:22.8]} 54... bxc5 {[%clk 0:00:20.1]} 55. bxc5
{[%clk 0:00:23.7]} 55... Nc4+ {[%clk 0:00:19.5]} 56. Kf2 {[%clk 0:00:22.1]}
56... Kd8 {[%clk 0:00:20.1]} 57. Nb5 {[%clk 0:00:21.3]} 57... Nd3+ {[%clk
0:00:20.1]} 58. Kg3 {[%clk 0:00:20.1]} 58... Nxc5 {[%clk 0:00:21]} 59. Kh4
{[%clk 0:00:20.2]} 59... Nd2 {[%clk 0:00:19.7]} 60. Kg3 {[%clk 0:00:18.2]} 60...
Nd3 {[%clk 0:00:19.4]} 61. Nd6 {[%clk 0:00:16]} 61... Nf4 {[%clk 0:00:19.6]} 62.
Nf7+ {[%clk 0:00:15.5]} 62... Ke7 {[%clk 0:00:19.9]} 63. Nxe5 {[%clk 0:00:16.1]}
63... Ne2+ {[%clk 0:00:20]} 64. Kf2 {[%clk 0:00:16.3]} 64... Nd4 {[%clk
0:00:20.1]} 65. Bh3 {[%clk 0:00:16]} 65... N2b3 {[%clk 0:00:19.5]} 66. Ke3
{[%clk 0:00:16.2]} 66... Ne6 {[%clk 0:00:19.9]} 67. Ng6+ {[%clk 0:00:11.7]}
67... Kf6 {[%clk 0:00:19.4]} 68. Nh4 {[%clk 0:00:12.2]} 68... Nbc5 {[%clk
0:00:19]} 69. Ng2 {[%clk 0:00:10.6]} 69... Ng5 {[%clk 0:00:19.4]} 70. Bc8 {[%clk
0:00:09.6]} 70... Nce6 {[%clk 0:00:19.4]} 71. Nh4 {[%clk 0:00:09.1]} 71... Ng7
{[%clk 0:00:18.8]} 72. f4 {[%clk 0:00:09.3]} 72... Nf7 {[%clk 0:00:18.5]} 73.
e5+ {[%clk 0:00:09.6]} 73... Ke7 {[%clk 0:00:18.4]} 74. Ke4 {[%clk 0:00:09]}
74... Ne8 {[%clk 0:00:18]} 75. Ng6+ {[%clk 0:00:08]} 75... Kd8 {[%clk
0:00:17.9]} 76. Be6 {[%clk 0:00:08.3]} 76... Nh6 {[%clk 0:00:17.3]} 77. f5
{[%clk 0:00:07.8]} 77... Ng7 {[%clk 0:00:17.7]} 78. Nf4 {[%clk 0:00:06.3]} 78...
h4 {[%clk 0:00:17.6]} 79. f6 {[%clk 0:00:05.5]} 79... Nxe6 {[%clk 0:00:17.6]}
80. Nxe6+ {[%clk 0:00:06.4]} 80... Ke8 {[%clk 0:00:17.2]} 81. Nf4 {[%clk
0:00:07]} 81... Kf7 {[%clk 0:00:16.3]} 82. Nh3 {[%clk 0:00:07.3]} 82... Ng4
{[%clk 0:00:15.9]} 83. Kf4 {[%clk 0:00:07.6]} 83... Nh2 {[%clk 0:00:15.5]} 84.
Ng5+ {[%clk 0:00:08]} 84... Kf8 {[%clk 0:00:15.2]} 85. e6 {[%clk 0:00:08.6]}
85... Nf1 {[%clk 0:00:14.2]} 86. Kg4 {[%clk 0:00:09.1]} 86... Ne3+ {[%clk
0:00:13.9]} 87. Kxh4 {[%clk 0:00:08.3]} 87... Nd5 {[%clk 0:00:14.6]} 88. Nh7+
{[%clk 0:00:07.2]} 88... Kg8 {[%clk 0:00:09.8]} 89. f7+ {[%clk 0:00:05.4]} 89...
Kg7 {[%clk 0:00:09.9]} 90. f8=Q+ {[%clk 0:00:05.7]} 90... Kxh7 {[%clk
0:00:10.4]} 91. Qf5+ {[%clk 0:00:05.9]} 1-0

[Event "Early-Titled-Tuesday-Blitz-May-07-2024"]
[Site "Chess.com"]
[Date "2024.05.07"]
[Round "4"]
[White "Polish_fighter3000"]
[Black "Mikhail_Bryakin"]
[Result "1-0"]
[WhiteElo "3104"]
[BlackElo "2885"]
[TimeControl "180+1"]
[EndTime "8:45:19 PDT"]
[Termination "Polish_fighter3000 won on time"]

1. c3 {[%clk 0:03:00.9]} 1... c6 {[%clk 0:02:57.5]} 2. d4 {[%clk 0:03:01.8]}
2... d5 {[%clk 0:02:57.5]} 3. Qc2 {[%clk 0:02:53.7]} 3... Nf6 {[%clk 0:02:56.6]}
4. Bf4 {[%clk 0:02:53]} 4... Bg4 {[%clk 0:02:48.4]} 5. f3 {[%clk 0:02:41.2]}
5... Bh5 {[%clk 0:02:48.3]} 6. e4 {[%clk 0:02:36.3]} 6... Bg6 {[%clk 0:02:48.3]}
7. Bd3 {[%clk 0:02:35.8]} 7... e6 {[%clk 0:02:48.1]} 8. Nd2 {[%clk 0:02:29.2]}
8... Be7 {[%clk 0:02:44.9]} 9. Ne2 {[%clk 0:02:17.3]} 9... Qb6 {[%clk
0:02:35.3]} 10. b4 {[%clk 0:01:52]} 10... a5 {[%clk 0:02:31.6]} 11. Bxb8 {[%clk
0:01:48.4]} 11... Rxb8 {[%clk 0:02:30.9]} 12. e5 {[%clk 0:01:46.9]} 12... Nd7
{[%clk 0:02:30.4]} 13. a3 {[%clk 0:01:45.9]} 13... Ra8 {[%clk 0:02:22.9]} 14.
Rb1 {[%clk 0:00:58.6]} 14... axb4 {[%clk 0:02:19.9]} 15. axb4 {[%clk 0:00:59.5]}
15... O-O {[%clk 0:02:10.1]} 16. f4 {[%clk 0:00:59.3]} 16... Bxd3 {[%clk
0:02:07.8]} 17. Qxd3 {[%clk 0:00:59.9]} 17... Qb5 {[%clk 0:02:08]} 18. Qxb5
{[%clk 0:00:20.3]} 18... cxb5 {[%clk 0:02:08.2]} 19. Nb3 {[%clk 0:00:21.2]}
19... b6 {[%clk 0:01:51.9]} 20. Nbc1 {[%clk 0:00:14.1]} 20... Ra3 {[%clk
0:01:49.6]} 21. O-O {[%clk 0:00:13.2]} 21... Rfa8 {[%clk 0:01:41]} 22. Kf2
{[%clk 0:00:12.4]} 22... h5 {[%clk 0:01:23.2]} 23. g3 {[%clk 0:00:11.7]} 23...
g6 {[%clk 0:01:23.3]} 24. Rb2 {[%clk 0:00:11.7]} 24... f5 {[%clk 0:01:14.9]} 25.
Nd3 {[%clk 0:00:07.7]} 25... Nb8 {[%clk 0:01:06.3]} 26. h3 {[%clk 0:00:07.1]}
26... Nc6 {[%clk 0:01:04.7]} 27. Ke3 {[%clk 0:00:06.4]} 27... Kf7 {[%clk
0:01:03]} 28. Rg1 {[%clk 0:00:05.5]} 28... Rh8 {[%clk 0:01:03.1]} 29. Rbb1
{[%clk 0:00:05.2]} 29... Ra2 {[%clk 0:00:59.5]} 30. Ra1 {[%clk 0:00:04.9]} 30...
Rha8 {[%clk 0:00:59.6]} 31. Rxa2 {[%clk 0:00:04.7]} 31... Rxa2 {[%clk
0:01:00.5]} 32. Rb1 {[%clk 0:00:04.5]} 32... Ra3 {[%clk 0:00:57.3]} 33. Kd2
{[%clk 0:00:04.2]} 33... Ra2+ {[%clk 0:00:57.1]} 34. Ke3 {[%clk 0:00:04.9]}
34... Ra3 {[%clk 0:00:57.2]} 35. g4 {[%clk 0:00:05.3]} 35... hxg4 {[%clk
0:00:55.5]} 36. hxg4 {[%clk 0:00:06.2]} 36... Bf8 {[%clk 0:00:55.5]} 37. g5
{[%clk 0:00:06]} 37... Be7 {[%clk 0:00:54.4]} 38. Rh1 {[%clk 0:00:06.2]} 38...
Kg7 {[%clk 0:00:51.8]} 39. Rb1 {[%clk 0:00:05.6]} 39... Kf7 {[%clk 0:00:51.6]}
40. Rb2 {[%clk 0:00:06.2]} 40... Ra1 {[%clk 0:00:51.5]} 41. Kd2 {[%clk
0:00:06.2]} 41... Kg7 {[%clk 0:00:49.5]} 42. Ne1 {[%clk 0:00:05.8]} 42... Kf7
{[%clk 0:00:49]} 43. Nc2 {[%clk 0:00:05.8]} 43... Ra8 {[%clk 0:00:49.7]} 44. Rb3
{[%clk 0:00:06]} 44... Bf8 {[%clk 0:00:47.7]} 45. Na3 {[%clk 0:00:06.2]} 45...
Na7 {[%clk 0:00:47.2]} 46. Rb1 {[%clk 0:00:06.8]} 46... Be7 {[%clk 0:00:46.5]}
47. Kc2 {[%clk 0:00:06.3]} 47... Rh8 {[%clk 0:00:43.2]} 48. Ra1 {[%clk
0:00:06.5]} 48... Rh2 {[%clk 0:00:40.9]} 49. Kd2 {[%clk 0:00:06.9]} 49... Rh8
{[%clk 0:00:36.2]} 50. Nc2 {[%clk 0:00:06.6]} 50... Nc6 {[%clk 0:00:36.8]} 51.
Ra6 {[%clk 0:00:06.9]} 51... Bd8 {[%clk 0:00:33.2]} 52. Na3 {[%clk 0:00:07.1]}
52... Ke7 {[%clk 0:00:24.9]} 53. Nxb5 {[%clk 0:00:07.4]} 53... Kd7 {[%clk
0:00:25.8]} 54. Nd6 {[%clk 0:00:07.5]} 54... Bc7 {[%clk 0:00:21]} 55. Nb5 {[%clk
0:00:07.4]} 55... Kc8 {[%clk 0:00:16.5]} 56. Ra8+ {[%clk 0:00:05.5]} 56... Nb8
{[%clk 0:00:17]} 57. Ra7 {[%clk 0:00:03.8]} 57... Rh7 {[%clk 0:00:13.6]} 58.
Nd6+ {[%clk 0:00:04.4]} 58... Kd8 {[%clk 0:00:14.2]} 59. Nb5 {[%clk 0:00:02.5]}
59... Nc6 {[%clk 0:00:10.8]} 60. Ra8+ {[%clk 0:00:02.8]} 60... Bb8 {[%clk
0:00:08.8]} 61. Nc1 {[%clk 0:00:03.4]} 61... Kc8 {[%clk 0:00:08.8]} 62. Nd6+
{[%clk 0:00:03.4]} 62... Kc7 {[%clk 0:00:08.8]} 63. Nd3 {[%clk 0:00:02.8]} 63...
Rh2+ {[%clk 0:00:08.7]} 64. Kc1 {[%clk 0:00:02.9]} 64... Rh3 {[%clk 0:00:08.5]}
65. Kc2 {[%clk 0:00:03.3]} 65... Rh2+ {[%clk 0:00:08.7]} 66. Kd1 {[%clk
0:00:02.6]} 66... Rh3 {[%clk 0:00:09]} 67. Ke2 {[%clk 0:00:03.1]} 67... Rh2+
{[%clk 0:00:09.4]} 68. Nf2 {[%clk 0:00:03.7]} 68... Rh4 {[%clk 0:00:09.2]} 69.
Kf3 {[%clk 0:00:03.4]} 69... Rh8 {[%clk 0:00:09.3]} 70. Ra1 {[%clk 0:00:03.3]}
70... Kd7 {[%clk 0:00:08.5]} 71. Nb5 {[%clk 0:00:03.7]} 71... Kc8 {[%clk
0:00:08.8]} 72. Rh1 {[%clk 0:00:02.6]} 72... Rxh1 {[%clk 0:00:08.8]} 73. Nxh1
{[%clk 0:00:03.5]} 73... Ne7 {[%clk 0:00:09.1]} 74. Ke2 {[%clk 0:00:03.6]} 74...
Kd7 {[%clk 0:00:09.7]} 75. Kd3 {[%clk 0:00:03.8]} 75... Kc6 {[%clk 0:00:10.3]}
76. Na3 {[%clk 0:00:03.2]} 76... b5 {[%clk 0:00:10.8]} 77. Ng3 {[%clk
0:00:03.6]} 77... Bc7 {[%clk 0:00:10.9]} 78. Nf1 {[%clk 0:00:04.2]} 78... Nc8
{[%clk 0:00:10.6]} 79. Nh2 {[%clk 0:00:04.3]} 79... Ne7 {[%clk 0:00:09.8]} 80.
Nf3 {[%clk 0:00:04.5]} 80... Bb6 {[%clk 0:00:10.3]} 81. Nd2 {[%clk 0:00:04.8]}
81... Bc7 {[%clk 0:00:10.5]} 82. Nb3 {[%clk 0:00:05.1]} 82... Bb6 {[%clk
0:00:11]} 83. Kc2 {[%clk 0:00:05.4]} 83... Nc8 {[%clk 0:00:10.6]} 84. Nc5 {[%clk
0:00:04.4]} 84... Bxc5 {[%clk 0:00:10.5]} 85. bxc5 {[%clk 0:00:04.4]} 85... Na7
{[%clk 0:00:08.6]} 86. Kb3 {[%clk 0:00:04.7]} 86... Nc8 {[%clk 0:00:08.2]} 87.
Kb4 {[%clk 0:00:04.9]} 87... Na7 {[%clk 0:00:08.8]} 88. Ka5 {[%clk 0:00:05.6]}
88... Kb7 {[%clk 0:00:09.3]} 89. Nxb5 {[%clk 0:00:05.8]} 89... Nc6+ {[%clk
0:00:10]} 90. Ka4 {[%clk 0:00:06.4]} 90... Kc8 {[%clk 0:00:10.2]} 91. Nd6+
{[%clk 0:00:06.4]} 91... Kd7 {[%clk 0:00:11]} 92. Kb5 {[%clk 0:00:06.9]} 92...
Ne7 {[%clk 0:00:11.5]} 93. Nf7 {[%clk 0:00:06.6]} 93... Nc6 {[%clk 0:00:09.7]}
94. Nh8 {[%clk 0:00:06.3]} 94... Ne7 {[%clk 0:00:09.2]} 95. Kb6 {[%clk
0:00:06.9]} 95... Kc8 {[%clk 0:00:09.1]} 96. c6 {[%clk 0:00:06.9]} 96... Kb8
{[%clk 0:00:09.5]} 97. Nf7 {[%clk 0:00:06.9]} 97... Nc8+ {[%clk 0:00:09.9]} 98.
Kc5 {[%clk 0:00:07.3]} 98... Kc7 {[%clk 0:00:10.8]} 99. Nd6 {[%clk 0:00:07.8]}
99... Ne7 {[%clk 0:00:10.3]} 100. Nb5+ {[%clk 0:00:08.5]} 100... Kd8 {[%clk
0:00:10.7]} 101. Kd6 {[%clk 0:00:09.1]} 101... Nc8+ {[%clk 0:00:10.5]} 102. Kxe6
{[%clk 0:00:09.5]} 1-0

[Event "Early-Titled-Tuesday-Blitz-May-07-2024"]
[Site "Chess.com"]
[Date "2024.05.07"]
[Round "4"]
[White "KogotBobra17"]
[Black "watermelonattackk"]
[Result "0-1"]
[WhiteElo "2728"]
[BlackElo "2565"]
[TimeControl "180+1"]
[EndTime "8:45:47 PDT"]
[Termination "watermelonattackk won by resignation"]

1. e4 {[%clk 0:03:00.9]} 1... e5 {[%clk 0:02:59.2]} 2. Nf3 {[%clk 0:02:58.9]}
2... Nc6 {[%clk 0:02:51.5]} 3. c3 {[%clk 0:02:58.9]} 3... Nf6 {[%clk 0:02:45.6]}
4. d4 {[%clk 0:02:59]} 4... exd4 {[%clk 0:02:45.4]} 5. e5 {[%clk 0:02:59.9]}
5... Ne4 {[%clk 0:02:41.6]} 6. cxd4 {[%clk 0:03:00]} 6... d5 {[%clk 0:02:41.9]}
7. Bb5 {[%clk 0:02:59]} 7... Bb4+ {[%clk 0:02:41.5]} 8. Nbd2 {[%clk 0:02:58.5]}
8... O-O {[%clk 0:02:41]} 9. O-O {[%clk 0:02:56.9]} 9... Nxd2 {[%clk 0:02:40.3]}
10. Bxd2 {[%clk 0:02:56.1]} 10... Bxd2 {[%clk 0:02:36.1]} 11. Qxd2 {[%clk
0:02:57]} 11... Ne7 {[%clk 0:02:36.5]} 12. Rac1 {[%clk 0:02:46.6]} 12... c6
{[%clk 0:02:36.5]} 13. Bd3 {[%clk 0:02:46.5]} 13... Bf5 {[%clk 0:02:36.5]} 14.
Rc3 {[%clk 0:02:43.5]} 14... Re8 {[%clk 0:02:35.6]} 15. b4 {[%clk 0:02:35.1]}
15... a6 {[%clk 0:02:34]} 16. a4 {[%clk 0:02:33.6]} 16... Qd7 {[%clk 0:02:32.7]}
17. Rb1 {[%clk 0:02:25]} 17... h6 {[%clk 0:02:30.2]} 18. h3 {[%clk 0:02:24.5]}
18... Ng6 {[%clk 0:02:28.5]} 19. b5 {[%clk 0:02:15.8]} 19... axb5 {[%clk
0:02:28.2]} 20. axb5 {[%clk 0:02:16.1]} 20... Bxd3 {[%clk 0:02:27.6]} 21. Rxd3
{[%clk 0:02:17]} 21... Qf5 {[%clk 0:02:24.2]} 22. bxc6 {[%clk 0:02:03.6]} 22...
bxc6 {[%clk 0:02:24.2]} 23. Rc1 {[%clk 0:02:02.3]} 23... Re6 {[%clk 0:02:22.5]}
24. Rdc3 {[%clk 0:02:01.8]} 24... Nf4 {[%clk 0:02:13.5]} 25. Qc2 {[%clk
0:01:09.6]} 25... Qh5 {[%clk 0:01:52.5]} 26. Qd2 {[%clk 0:01:06.1]} 26... Qf5
{[%clk 0:01:46.6]} 27. Kh2 {[%clk 0:00:57.2]} 27... Rc8 {[%clk 0:01:24.5]} 28.
Re1 {[%clk 0:00:52.3]} 28... g5 {[%clk 0:01:21.4]} 29. Qc2 {[%clk 0:00:47.8]}
29... Qxc2 {[%clk 0:01:10.8]} 30. Rxc2 {[%clk 0:00:48.7]} 30... Kf8 {[%clk
0:01:03.7]} 31. Rc3 {[%clk 0:00:45.4]} 31... Ke7 {[%clk 0:00:56.1]} 32. Nd2
{[%clk 0:00:45.7]} 32... f6 {[%clk 0:00:50.6]} 33. Rce3 {[%clk 0:00:16.9]} 33...
fxe5 {[%clk 0:00:50.3]} 34. Rxe5 {[%clk 0:00:17.8]} 34... Rxe5 {[%clk
0:00:50.3]} 35. Rxe5+ {[%clk 0:00:18.7]} 35... Kf6 {[%clk 0:00:49.7]} 36. Nb3
{[%clk 0:00:17.7]} 36... Ne6 {[%clk 0:00:46.6]} 37. Re3 {[%clk 0:00:15.9]} 37...
Rb8 {[%clk 0:00:40.9]} 38. Rc3 {[%clk 0:00:14.7]} 38... Rb4 {[%clk 0:00:40.5]}
39. Rd3 {[%clk 0:00:15]} 39... h5 {[%clk 0:00:38.4]} 40. Kg3 {[%clk 0:00:15.5]}
40... h4+ {[%clk 0:00:35.2]} 41. Kh2 {[%clk 0:00:15.9]} 41... Kf5 {[%clk
0:00:34.8]} 42. Rf3+ {[%clk 0:00:14.4]} 42... Kg6 {[%clk 0:00:34.8]} 43. Re3
{[%clk 0:00:14.2]} 43... Kf6 {[%clk 0:00:35.1]} 44. Rf3+ {[%clk 0:00:13.2]}
44... Kg6 {[%clk 0:00:34.6]} 45. Rd3 {[%clk 0:00:13.9]} 45... Kf6 {[%clk
0:00:33.7]} 46. g4 {[%clk 0:00:14.5]} 46... Nf4 {[%clk 0:00:28.2]} 47. Re3
{[%clk 0:00:14.4]} 47... Ne6 {[%clk 0:00:26]} 48. Rd3 {[%clk 0:00:13.4]} 48...
Nf4 {[%clk 0:00:25.7]} 49. Rc3 {[%clk 0:00:14]} 49... Kf7 {[%clk 0:00:22.4]} 50.
Re3 {[%clk 0:00:06.1]} 50... Ne6 {[%clk 0:00:21]} 51. Rf3+ {[%clk 0:00:06.4]}
51... Kg7 {[%clk 0:00:20]} 52. Rd3 {[%clk 0:00:06.4]} 52... Nf4 {[%clk
0:00:18.9]} 53. Rc3 {[%clk 0:00:06.6]} 53... Ne6 {[%clk 0:00:17.9]} 54. Rxc6
{[%clk 0:00:06.3]} 54... Nxd4 {[%clk 0:00:18]} 55. Rc7+ {[%clk 0:00:05.6]} 55...
Kf6 {[%clk 0:00:16.9]} 56. Nc5 {[%clk 0:00:06]} 56... Rb2 {[%clk 0:00:16.2]} 57.
Kg2 {[%clk 0:00:04]} 57... Ne2 {[%clk 0:00:13.5]} 58. Rc6+ {[%clk 0:00:03.4]}
58... Kf7 {[%clk 0:00:12.5]} 59. Rc7+ {[%clk 0:00:03.7]} 59... Kf6 {[%clk
0:00:12.1]} 60. Rc6+ {[%clk 0:00:04.3]} 60... Kf7 {[%clk 0:00:12.4]} 61. Nd3
{[%clk 0:00:05]} 61... Nf4+ {[%clk 0:00:09.2]} 62. Nxf4 {[%clk 0:00:04.9]} 62...
gxf4 {[%clk 0:00:10.1]} 63. Rd6 {[%clk 0:00:04.9]} 63... Rd2 {[%clk 0:00:08.9]}
64. Kf3 {[%clk 0:00:05.4]} 64... Ke7 {[%clk 0:00:08.4]} 65. Ra6 {[%clk
0:00:05.5]} 65... Rd3+ {[%clk 0:00:08.5]} 66. Kxf4 {[%clk 0:00:05.4]} 66... Rxh3
{[%clk 0:00:09.2]} 67. Ke5 {[%clk 0:00:05]} 67... Rd3 {[%clk 0:00:09.3]} 68.
Ra7+ {[%clk 0:00:04.7]} 68... Kf8 {[%clk 0:00:09.2]} 69. Rh7 {[%clk 0:00:04.3]}
69... h3 {[%clk 0:00:09.5]} 70. f4 {[%clk 0:00:03.4]} 70... d4 {[%clk
0:00:09.1]} 71. Kf6 {[%clk 0:00:03.8]} 71... Ke8 {[%clk 0:00:09.5]} 72. g5
{[%clk 0:00:03.7]} 72... Rf3 {[%clk 0:00:09.9]} 73. f5 {[%clk 0:00:03.9]} 73...
d3 {[%clk 0:00:10.5]} 74. g6 {[%clk 0:00:04.3]} 74... d2 {[%clk 0:00:10.6]} 75.
g7 {[%clk 0:00:04.9]} 75... Rg3 {[%clk 0:00:11.2]} 76. Rxh3 {[%clk 0:00:05.5]}
76... Rxg7 {[%clk 0:00:10.4]} 77. Re3+ {[%clk 0:00:05]} 77... Kd8 {[%clk
0:00:09.6]} 78. Kxg7 {[%clk 0:00:02.1]} 78... d1=Q {[%clk 0:00:08.8]} 79. Re6
{[%clk 0:00:02.7]} 79... Qg4+ {[%clk 0:00:07.3]} 80. Kf6 {[%clk 0:00:03.4]}
80... Kd7 {[%clk 0:00:07.7]} 81. Re7+ {[%clk 0:00:03.9]} 81... Kd6 {[%clk
0:00:07.8]} 82. Re6+ {[%clk 0:00:04.5]} 82... Kd5 {[%clk 0:00:08.2]} 83. Re5+
{[%clk 0:00:05.2]} 83... Kd6 {[%clk 0:00:08.7]} 84. Re6+ {[%clk 0:00:05.4]}
84... Kd7 {[%clk 0:00:09.2]} 85. Re7+ {[%clk 0:00:04]} 85... Kd8 {[%clk
0:00:09.6]} 86. Re5 {[%clk 0:00:03.8]} 86... Qd4 {[%clk 0:00:08.5]} 87. Ke6
{[%clk 0:00:04]} 87... Ke8 {[%clk 0:00:09.1]} 88. f6 {[%clk 0:00:03.4]} 88...
Qb6+ {[%clk 0:00:09.2]} 89. Kf5+ {[%clk 0:00:03.8]} 89... Kf7 {[%clk 0:00:09.2]}
90. Re7+ {[%clk 0:00:04.5]} 90... Kf8 {[%clk 0:00:09.5]} 91. Kg6 {[%clk
0:00:05.1]} 91... Qg1+ {[%clk 0:00:09.4]} 92. Kf5 {[%clk 0:00:05.6]} 92... Qg3
{[%clk 0:00:09.5]} 93. Ke6 {[%clk 0:00:03.8]} 93... Qb3+ {[%clk 0:00:07]} 94.
Kf5 {[%clk 0:00:04.3]} 94... Qd5+ {[%clk 0:00:07.3]} 95. Kg6 {[%clk 0:00:04.4]}
95... Qg2+ {[%clk 0:00:07.4]} 96. Kf5 {[%clk 0:00:04.5]} 96... Qg3 {[%clk
0:00:07.8]} 97. Ke6 {[%clk 0:00:04.1]} 97... Qe3+ {[%clk 0:00:07.4]} 98. Kf5
{[%clk 0:00:04.4]} 98... Qf3+ {[%clk 0:00:07.5]} 99. Ke5 {[%clk 0:00:02.9]}
99... Qg4 {[%clk 0:00:07.3]} 100. Rc7 {[%clk 0:00:01.6]} 100... Qg3+ {[%clk
0:00:06.4]} 101. Ke6 {[%clk 0:00:02.2]} 101... Qxc7 {[%clk 0:00:07.3]} 0-1

[Event "Early-Titled-Tuesday-Blitz-May-07-2024"]
[Site "Chess.com"]
[Date "2024.05.07"]
[Round "5"]
[White "Chessdreamer2020"]
[Black "DarZay"]
[Result "1-0"]
[WhiteElo "2520"]
[BlackElo "2330"]
[TimeControl "180+1"]
[EndTime "8:53:38 PDT"]
[Termination "Chessdreamer2020 won by resignation"]

1. e4 {[%clk 0:02:59.1]} 1... c5 {[%clk 0:02:58.3]} 2. Nf3 {[%clk 0:02:59.2]}
2... Nc6 {[%clk 0:02:55.4]} 3. Bb5 {[%clk 0:02:58.9]} 3... g6 {[%clk 0:02:54.6]}
4. O-O {[%clk 0:02:59.2]} 4... Bg7 {[%clk 0:02:54.8]} 5. c3 {[%clk 0:02:59.7]}
5... Nf6 {[%clk 0:02:54.8]} 6. Qa4 {[%clk 0:02:59.9]} 6... O-O {[%clk
0:02:52.7]} 7. d4 {[%clk 0:03:00.5]} 7... cxd4 {[%clk 0:02:50]} 8. cxd4 {[%clk
0:03:01.4]} 8... Nxe4 {[%clk 0:02:49]} 9. d5 {[%clk 0:03:01.2]} 9... Nc5 {[%clk
0:02:46.9]} 10. Qa3 {[%clk 0:03:01.5]} 10... Qb6 {[%clk 0:02:39.6]} 11. Nc3
{[%clk 0:03:00.3]} 11... Bxc3 {[%clk 0:02:34]} 12. Qxc3 {[%clk 0:03:01.2]} 12...
Qxb5 {[%clk 0:02:31.8]} 13. Bh6 {[%clk 0:03:01.2]} 13... f6 {[%clk 0:02:24.6]}
14. Bxf8 {[%clk 0:03:01.3]} 14... Kxf8 {[%clk 0:02:24.5]} 15. dxc6 {[%clk
0:03:02.2]} 15... dxc6 {[%clk 0:02:21.5]} 16. Rfe1 {[%clk 0:02:57.5]} 16... Bf5
{[%clk 0:02:18.7]} 17. Nd4 {[%clk 0:02:56.9]} 17... Qd3 {[%clk 0:02:15.9]} 18.
Qxc5 {[%clk 0:02:55]} 1-0

[Event "Early-Titled-Tuesday-Blitz-May-07-2024"]
[Site "Chess.com"]
[Date "2024.05.07"]
[Round "5"]
[White "HanSchut"]
[Black "maurovargas01"]
[Result "1-0"]
[WhiteElo "2356"]
[BlackElo "1972"]
[TimeControl "180+1"]
[EndTime "8:53:43 PDT"]
[Termination "HanSchut won by resignation"]

1. e4 {[%clk 0:03:00.9]} 1... c5 {[%clk 0:02:59.7]} 2. Nf3 {[%clk 0:03:00.7]}
2... d6 {[%clk 0:02:59.1]} 3. d4 {[%clk 0:03:00.9]} 3... cxd4 {[%clk 0:02:57.4]}
4. Nxd4 {[%clk 0:03:01.8]} 4... Nf6 {[%clk 0:02:53.7]} 5. f3 {[%clk 0:03:02]}
5... Nc6 {[%clk 0:02:52.6]} 6. c4 {[%clk 0:03:01.7]} 6... Nxd4 {[%clk
0:02:48.4]} 7. Qxd4 {[%clk 0:03:01.1]} 7... g6 {[%clk 0:02:46.9]} 8. Be3 {[%clk
0:03:00.9]} 8... Bg7 {[%clk 0:02:44.9]} 9. Nc3 {[%clk 0:03:01]} 9... Ng4 {[%clk
0:02:43.6]} 10. Qxg7 {[%clk 0:02:56.6]} 10... Nxe3 {[%clk 0:02:41.2]} 11. Qxh8+
{[%clk 0:02:54.5]} 11... Kd7 {[%clk 0:02:41.5]} 12. Qxd8+ {[%clk 0:02:53.8]}
12... Kxd8 {[%clk 0:02:41.3]} 13. Kd2 {[%clk 0:02:47.5]} 13... Nxf1+ {[%clk
0:02:37]} 14. Rhxf1 {[%clk 0:02:46.3]} 14... Be6 {[%clk 0:02:37.6]} 15. b3
{[%clk 0:02:43.1]} 15... Rc8 {[%clk 0:02:37.7]} 16. Rac1 {[%clk 0:02:42.2]}
16... a6 {[%clk 0:02:37.4]} 17. Nd5 {[%clk 0:02:39.6]} 17... b5 {[%clk
0:02:35.5]} 18. cxb5 {[%clk 0:02:37.1]} 18... axb5 {[%clk 0:02:34.8]} 19. Rxc8+
{[%clk 0:02:34.5]} 19... Kxc8 {[%clk 0:02:34.6]} 20. Nxe7+ {[%clk 0:02:33.9]}
1-0